bitfinex-derivatives/quotes_SOLF0:USTF0_20241025
["timestamp","ask_amount","ask_price","bid_price","bid_amount"]
[1729864131957,5.08,173.91,173.81,27.20474868]
[1729864132456,2.8766,173.9,173.84,2.8774]
[1729864132664,1.2072,173.93,173.84,2.8774]
[1729864133058,1.261,173.94,173.84,22.12474868]
[1729864133260,5.08,173.96,173.86,2.877]
[1729864133857,5.08,173.96,173.87,2.8769]
[1729864135161,2.8763,173.92,173.87,2.8769]
[1729864136857,22.12474868,173.95,173.84,22.12474868]
[1729864137059,22.12474868,173.93,173.81,5.08]
[1729864137560,22.12474868,173.93,173.83,2.8776]
[1729864138065,22.12474868,173.93,173.81,5.08]
[1729864138259,22.12474868,173.93,173.84,2.8774]
[1729864138260,2.8769,173.88,173.84,2.8774]
[1729864138668,22.12474868,173.93,173.81,5.08]
[1729864138864,22.12474868,173.93,173.81,7.9578]
[1729864139059,22.12474868,173.9,173.79,3.7174]
[1729864139368,22.12474868,173.9,173.77,22.12474868]
[1729864139369,2.8778,173.82,173.78,2.8783]
[1729864139756,22.12474868,173.88,173.77,5.08]
[1729864139958,2.8773,173.85,173.78,2.8784]
[1729864140260,22.12474868,173.88,173.78,2.8784]
[1729864140460,22.12474868,173.88,173.79,4.6]
[1729864140871,2.4832,173.89,173.79,4.6]
[1729864141068,2.8776,173.84,173.79,4.6]
[1729864141364,2.4832,173.89,173.79,4.6]
[1729864141765,2.8777,173.83,173.79,4.6]
[1729864142271,2.8779,173.82,173.79,4.6]
[1729864142463,22.12474868,173.88,173.79,4.6]
[1729864142664,22.12474868,173.88,173.8,2.878]
[1729864142865,2.8775,173.84,173.8,2.878]
[1729864143371,2.8775,173.84,173.79,4.6]
[1729864143573,22.12474868,173.88,173.79,4.6]
[1729864143773,2.8773,173.85,173.79,4.6]
[1729864143968,5.08,173.92,173.79,26.72474868]
[1729864144159,2.8767,173.89,173.84,2.8774]
[1729864144564,2.8767,173.89,173.84,2.8773]
[1729864144766,5.08,173.92,173.82,5.08]
[1729864144974,5.08,173.93,173.82,5.08]
[1729864145169,5.08,173.93,173.85,2.8772]
[1729864145569,2.8767,173.89,173.85,2.8772]
[1729864146266,2.8767,173.89,173.82,5.08]
[1729864146470,22.12474868,173.92,173.82,5.08]
[1729864146667,22.12474868,173.89,173.79,4.6]
[1729864146867,2.5055,173.94,173.79,4.6]
[1729864146868,22.12474868,173.86,173.79,4.6]
[1729864147072,2.8778,173.83,173.79,4.6]
[1729864147966,22.12474868,173.86,173.79,4.6]
[1729864148270,2.8775,173.84,173.79,4.6]
[1729864148971,2.8771,173.86,173.81,2.8779]
[1729864149173,5.08,173.88,173.79,4.6]
[1729864150069,2.877,173.87,173.82,2.8777]
[1729864150473,5.08,173.88,173.79,4.6]
[1729864150784,27.12474868,173.98,173.84,22.12474868]
[1729864151077,2.8759,173.94,173.89,2.8766]
[1729864151570,2.8756,173.96,173.89,2.8766]
[1729864151777,27.12474868,173.98,173.89,2.8766]
[1729864152275,2.876,173.93,173.89,2.8766]
[1729864152675,2.8759,173.94,173.89,2.8766]
[1729864154080,27.12474868,173.98,173.89,2.8766]
[1729864154279,27.12474868,173.98,173.85,25.75824868]
[1729864154477,27.12474868,173.98,173.9,2.8764]
[1729864154478,5.0,173.97,173.9,2.8764]
[1729864154682,2.8755,173.96,173.87,22.12474868]
[1729864155179,2.8755,173.96,173.91,2.8762]
[1729864155779,5.0,173.97,173.87,22.12474868]
[1729864155780,2.8754,173.97,173.93,2.8759]
[1729864156278,2.8754,173.97,173.92,2.8761]
[1729864156582,2.8754,173.97,173.89,5.0]
[1729864156772,2.8754,173.97,173.92,2.876]
[1729864156974,2.8756,173.96,173.92,2.876]
[1729864157483,2.8757,173.95,173.9,2.8763]
[1729864157875,2.8757,173.95,173.86,5.0]
[1729864157876,2.8757,173.95,173.87,22.12474868]
[1729864158074,2.8757,173.95,173.91,2.8763]
[1729864159582,2.8762,173.92,173.87,2.8768]
[1729864159783,22.12474868,173.98,173.87,5.0]
[1729864160279,22.12474868,173.95,173.85,3.6335]
[1729864160487,27.12474868,173.95,173.85,3.6335]
[1729864160678,27.12474868,173.95,173.8,22.12474868]
[1729864160679,2.8769,173.88,173.83,2.8776]
[1729864161479,22.12474868,173.92,173.81,5.0]
[1729864161680,27.12474868,173.95,173.81,5.0]
[1729864162389,2.8763,173.91,173.81,5.0]
[1729864162583,27.12474868,173.95,173.81,5.0]
[1729864162884,22.12474868,173.92,173.81,5.0]
[1729864163187,22.12474868,173.89,173.81,5.0]
[1729864163377,27.12474868,173.89,173.81,5.0]
[1729864163573,2.877,173.87,173.83,2.8776]
[1729864163776,5.0,173.89,173.81,5.0]
[1729864164481,22.12474868,173.95,173.81,5.0]
[1729864164779,2.8763,173.92,173.81,5.0]
[1729864164981,5.0,173.94,173.83,22.12474868]
[1729864165181,5.0,173.94,173.84,1.2629]
[1729864165379,2.8762,173.92,173.87,2.8768]
[1729864167086,5.0,173.94,173.84,1.2629]
[1729864167484,2.8767,173.89,173.84,4.1402]
[1729864168390,2.8766,173.9,173.85,2.8772]
[1729864168891,5.0,173.94,173.84,1.2629]
[1729864168892,2.8761,173.93,173.84,1.2629]
[1729864169691,2.8759,173.94,173.86,22.12474868]
[1729864169892,2.8759,173.94,173.86,27.12474868]
[1729864170190,2.8759,173.94,173.89,2.8765]
[1729864171281,2.8759,173.94,173.86,27.12474868]
[1729864171282,6.205,173.97,173.86,27.12474868]
[1729864171588,2.8762,173.92,173.86,5.0]
[1729864172086,2.876,173.93,173.89,2.8766]
[1729864172488,2.876,173.93,173.86,5.0]
[1729864172689,2.876,173.93,173.88,2.8767]
[1729864173184,2.8756,173.96,173.92,2.8761]
[1729864173378,2.8756,173.96,173.86,27.12474868]
[1729864173785,2.8756,173.96,173.89,2.8766]
[1729864173983,2.8756,173.96,173.86,27.12474868]
[1729864174585,2.8758,173.94,173.86,5.0]
[1729864175089,2.8758,173.94,173.88,2.8767]
[1729864175486,2.8758,173.94,173.86,5.0]
[1729864175694,2.8758,173.94,173.89,2.8765]
[1729864176489,2.8756,173.95,173.9,2.8763]
[1729864176886,2.8756,173.96,173.91,2.8761]
[1729864177092,5.0,173.97,173.86,27.12474868]
[1729864177897,28.35214868,174.0,173.86,27.12474868]
[1729864178093,28.35214868,174.0,173.92,2.876]
[1729864178094,2.8754,173.97,173.92,2.876]
[1729864178298,2.8754,173.97,173.86,27.12474868]
[1729864178797,2.8754,173.97,173.92,2.876]
[1729864179601,2.8755,173.96,173.92,2.876]
[1729864183395,2.8754,173.97,173.93,2.8759]
[1729864183595,28.35214868,174.0,173.93,2.8759]
[1729864184300,2.8755,173.96,173.92,2.8761]
[1729864184803,2.8759,173.94,173.9,2.8764]
[1729864184998,20.04388256,174.0,173.87,4.8]
[1729864185193,13.81648256,173.93,173.87,4.8]
[1729864185399,13.81648256,173.93,173.86,2.877]
[1729864185400,2.8764,173.91,173.86,2.877]
[1729864185594,13.81648256,173.93,173.86,2.877]
[1729864185802,13.81648256,173.89,173.8,4.8]
[1729864186206,4.8,173.91,173.81,13.81648256]
[1729864186207,18.61648256,173.91,173.81,13.81648256]
[1729864186707,2.8766,173.9,173.85,2.8771]
[1729864186899,2.8766,173.9,173.81,13.81648256]
[1729864187807,2.8766,173.9,173.85,2.8771]
[1729864189309,2.8766,173.9,173.8,8.57329412]
[1729864189504,4.8,173.91,173.81,3.77329412]
[1729864189711,7.6764,173.91,173.81,3.77329412]
[1729864189912,7.6764,173.91,173.8,4.8]
[1729864190209,7.6764,173.91,173.87,2.8769]
[1729864190512,2.8766,173.9,173.8,26.8989935]
[1729864190809,22.0989935,173.88,173.82,2.8777]
[1729864191112,2.8776,173.84,173.77,3.6595]
[1729864191411,2.8776,173.84,173.78,4.8]
[1729864192206,2.8776,173.83,173.78,4.8]
[1729864193011,2.8775,173.84,173.79,2.8783]
[1729864196213,2.8777,173.83,173.79,2.8781]
[1729864196514,22.0989935,173.85,173.79,2.8781]
[1729864196906,2.8776,173.84,173.8,2.8781]
[1729864197106,22.0989935,173.85,173.77,3.6595]
[1729864197507,2.8777,173.83,173.77,3.6595]
[1729864197802,26.8989935,173.86,173.77,3.6595]
[1729864198017,26.8989935,173.86,173.79,2.8782]
[1729864198018,2.8776,173.84,173.79,2.8782]
[1729864199813,2.8776,173.84,173.77,3.6595]
[1729864200014,24.9759935,173.87,173.77,3.6595]
[1729864200310,4.8,173.92,173.8,22.0989935]
[1729864200505,4.159,173.94,173.89,2.8765]
[1729864200709,4.8,173.96,173.89,2.8765]
[1729864201615,4.8,173.96,173.85,3.806]
[1729864201616,4.8,173.96,173.87,2.8769]
[1729864202110,2.8762,173.92,173.87,2.8769]
[1729864203213,26.8989935,173.96,173.85,3.806]
[1729864203409,2.8766,173.9,173.85,6.6832]
[1729864204209,2.8766,173.9,173.85,3.806]
[1729864204406,2.8766,173.9,173.86,2.8771]
[1729864205408,4.8,173.96,173.85,3.806]
[1729864205611,2.8763,173.91,173.87,2.8769]
[1729864205817,22.0989935,173.95,173.85,3.806]
[1729864206006,2.8763,173.92,173.88,2.8768]
[1729864206210,2.8763,173.92,173.85,3.806]
[1729864206917,2.8763,173.91,173.87,2.8768]
[1729864207808,26.8989935,173.95,173.83,4.8]
[1729864208117,22.0989935,173.89,173.81,3.76830476]
[1729864208320,22.0989935,173.89,173.79,4.8]
[1729864208321,13.81982958,173.86,173.79,4.8]
[1729864208520,13.81982958,173.86,173.79,8.56830476]
[1729864208821,2.8774,173.85,173.81,2.8778]
[1729864209023,13.81982958,173.86,173.79,4.8]
[1729864209318,16.69692958,173.86,173.82,2.8777]
[1729864210517,2.8771,173.87,173.81,2.8778]
[1729864210716,2.8771,173.87,173.79,4.8]
[1729864211219,13.81982958,173.88,173.79,4.8]
[1729864211416,4.8,173.89,173.79,4.8]
[1729864211417,13.81982958,173.86,173.79,4.8]
[1729864211624,13.81982958,173.86,173.8,2.878]
[1729864211826,13.81982958,173.84,173.76,3.7967]
[1729864212123,13.81982958,173.84,173.76,8.4967]
[1729864212321,13.81982958,173.84,173.78,2.8783]
[1729864212714,2.8778,173.82,173.78,2.8783]
[1729864213119,13.81982958,173.84,173.76,8.4967]
[1729864213313,4.7,173.85,173.76,22.31652958]
[1729864213717,13.81982958,173.9,173.85,2.8772]
[1729864214022,13.81982958,173.9,173.8,13.81982958]
[1729864214023,4.7,173.89,173.8,18.51982958]
[1729864214724,2.8769,173.88,173.83,2.8775]
[1729864215518,4.7,173.89,173.83,2.8775]
[1729864215719,2.877,173.87,173.83,2.8775]
[1729864216423,13.81982958,173.88,173.83,2.8775]
[1729864216424,16.69672958,173.88,173.83,2.8775]
[1729864216616,2.8769,173.88,173.84,2.8775]
[1729864217023,2.8769,173.88,173.8,18.51982958]
[1729864217024,7.5767,173.89,173.8,18.51982958]
[1729864217525,13.81982958,173.88,173.8,4.7]
[1729864217727,4.7,173.89,173.76,3.7967]
[1729864217728,13.81982958,173.86,173.78,4.7]
[1729864217925,13.81982958,173.86,173.79,2.8782]
[1729864218123,2.8777,173.83,173.79,2.8782]
[1729864218520,13.81982958,173.84,173.79,2.8782]
[1729864218820,13.81982958,173.84,173.8,2.878]
[1729864219019,13.81982958,173.84,173.76,7.57406984]
[1729864219020,4.7,173.85,173.76,7.57406984]
[1729864219225,4.7,173.87,173.79,13.81982958]
[1729864219522,4.7,173.88,173.85,2.8772]
[1729864219725,4.7,173.88,173.79,4.7]
[1729864219726,2.8763,173.91,173.83,13.81982958]
[1729864219925,2.8763,173.91,173.85,2.8772]
[1729864220128,4.7,173.92,173.83,13.81982958]
[1729864220629,4.7,173.92,173.87,2.8769]
[1729864222119,13.81982958,173.93,173.87,2.8769]
[1729864222317,18.51982958,173.93,173.88,2.8767]
[1729864223033,2.8763,173.92,173.88,2.8767]
[1729864223227,1.299,173.94,173.9,2.8764]
[1729864223424,2.876,173.93,173.85,13.81982958]
[1729864224427,2.876,173.93,173.89,2.8766]
[1729864225528,2.82457757,174.01,173.85,13.81982958]
[1729864225730,110.90431012,174.09,173.92,13.81982958]
[1729864225731,0.95428686,174.0,173.92,13.81982958]
[1729864225925,15.05062958,174.02,173.92,13.81982958]
[1729864226131,0.95402681,174.01,173.92,13.81982958]
[1729864226832,14.77385639,174.01,173.94,2.8757]
[1729864227027,13.81982958,174.01,173.94,2.8757]
[1729864227228,2.8753,173.98,173.93,2.876]
[1729864228428,2.8753,173.98,173.94,2.8758]
[1729864228829,13.81982958,174.01,173.94,2.8758]
[1729864229029,2.875,173.99,173.94,2.8758]
[1729864229735,2.8751,173.98,173.94,2.8758]
[1729864230522,2.875,173.99,173.94,2.8758]
[1729864231427,2.875,173.99,173.84,65.8303]
[1729864231428,2.8754,173.97,173.92,7.576]
[1729864231628,13.81982958,173.99,173.92,4.7]
[1729864232024,2.8753,173.98,173.93,2.8759]
[1729864232523,13.81982958,173.99,173.92,4.7]
[1729864232725,2.8754,173.97,173.92,7.5761]
[1729864233935,13.81982958,173.99,173.92,4.7]
[1729864234131,2.8752,173.98,173.93,2.8758]
[1729864234324,13.81982958,174.01,173.92,4.7]
[1729864234526,1.2308,174.02,173.93,13.81982958]
[1729864234724,1.2716,174.03,173.96,2.8755]
[1729864235130,2.8747,174.01,173.96,2.8755]
[1729864235534,2.8747,174.01,173.93,15.02402958]
[1729864235735,2.8747,174.01,173.97,2.8753]
[1729864236134,18.51982958,174.04,173.93,15.02402958]
[1729864236135,18.51982958,174.04,173.98,2.8751]
[1729864236535,2.8746,174.02,173.98,2.8751]
[1729864236739,2.8746,174.02,173.98,4.59]
[1729864238131,13.81982958,174.04,173.98,4.59]
[1729864238330,2.8744,174.03,173.99,2.875]
[1729864238638,15.10792958,174.08,173.98,4.59]
[1729864238939,2.8737,174.07,174.02,2.8743]
[1729864239140,1.1991,174.09,174.0,4.6]
[1729864239346,2.8732,174.1,174.05,2.8739]
[1729864239639,2.8732,174.1,173.99,2.459]
[1729864239640,5.8157,174.14,174.04,18.41982958]
[1729864239838,0.95335427,174.13,174.05,4.6]
[1729864240231,2.873,174.11,174.06,2.8738]
[1729864240536,2.83847941,174.29,174.1,13.81982958]
[1729864240725,13.81982958,174.2,174.1,13.81982958]
[1729864241131,2.8719,174.18,174.12,2.8728]
[1729864242036,2.872,174.17,174.11,2.8729]
[1729864242939,337.0,174.31,174.14,13.81982958]
[1729864243179,0.95277346,174.27,174.22,13.81982958]
[1729864243331,0.95269797,174.27,174.22,13.81982958]
[1729864244038,13.81982958,174.33,174.22,20.03132958]
[1729864244234,0.7701,174.36,174.26,2.8705]
[1729864244442,13.81982958,174.35,174.26,2.8705]
[1729864244745,2.8694,174.33,174.24,13.81982958]
[1729864244945,13.81982958,174.36,174.24,13.81982958]
[1729864245243,13.81982958,174.36,174.22,6.2115]
[1729864245244,13.81982958,174.36,174.27,13.81982958]
[1729864245544,16.68882958,174.36,174.27,16.69002958]
[1729864245740,1.2427,174.37,174.27,18.77982958]
[1729864245940,15.06252958,174.37,174.27,18.77982958]
[1729864246131,15.06252958,174.37,174.27,4.96]
[1729864246332,2.8694,174.33,174.27,4.96]
[1729864246745,22.04053296,174.36,174.27,4.96]
[1729864246947,2.8692,174.34,174.27,4.96]
[1729864247241,22.04053296,174.36,174.27,4.96]
[1729864247442,1.2427,174.37,174.27,7.8303]
[1729864247443,2.869,174.35,174.27,7.8303]
[1729864248037,2.869,174.35,174.27,4.96]
[1729864248343,2.869,174.36,174.28,24.91073296]
[1729864248741,2.8689,174.37,174.29,2.8699]
[1729864249038,4.96,174.39,174.28,22.04053296]
[1729864250334,2.869,174.36,174.28,22.04053296]
[1729864251239,2.869,174.36,174.29,2.87]
[1729864253042,4.96,174.39,174.29,2.87]
[1729864253251,2.8691,174.35,174.29,2.87]
[1729864253454,4.96,174.39,174.26,1.2099]
[1729864253455,22.04053296,174.38,174.26,1.2099]
[1729864253652,22.04053296,174.38,174.26,6.1499]
[1729864253857,2.8697,174.31,174.26,6.1499]
[1729864254844,2.8697,174.31,174.26,1.2099]
[1729864255051,2.87,174.3,174.26,1.2099]
[1729864255760,2.8703,174.28,174.24,4.94]
[1729864255951,22.04053296,174.33,174.22,4.1226]
[1729864257149,22.04053296,174.33,174.23,2.8709]
[1729864258052,22.04053296,174.33,174.24,2.8708]
[1729864258053,2.87,174.3,174.24,2.8708]
[1729864258245,22.04053296,174.33,174.24,2.8708]
[1729864258444,4.94,174.34,174.23,2.5037]
[1729864258747,1.2997,174.35,174.26,2.8705]
[1729864258748,2.8695,174.32,174.26,2.8705]
[1729864258952,2.8695,174.32,174.26,7.8105]
[1729864260756,26.98053296,174.36,174.26,4.94]
[1729864260949,2.8694,174.33,174.27,2.8702]
[1729864261147,4.94,174.36,174.26,4.94]
[1729864261347,2.8697,174.32,174.26,7.8105]
[1729864261549,26.98053296,174.36,174.26,4.94]
[1729864261944,26.98053296,174.36,174.23,7.4437]
[1729864262139,4.94,174.36,174.25,2.8707]
[1729864263046,4.94,174.36,174.23,7.4437]
[1729864263850,4.94,174.36,174.23,10.3147]
[1729864264152,1.2485,174.39,174.23,7.4437]
[1729864264351,1.2485,174.39,174.31,2.8696]
[1729864264352,4.94,174.38,174.31,2.8696]
[1729864264648,4.94,174.38,174.25,22.04053296]
[1729864264649,2.8695,174.33,174.28,4.94]
[1729864265045,6.1885,174.39,174.28,4.94]
[1729864265753,2.8696,174.32,174.28,4.94]
[1729864265950,6.1885,174.39,174.28,4.94]
[1729864266452,6.1885,174.39,174.29,2.87]
[1729864266647,6.1885,174.39,174.28,4.94]
[1729864266960,4.94,174.39,174.28,26.98053296]
[1729864268454,2.869,174.36,174.3,2.8697]
[1729864268657,18.72467682,174.39,174.3,2.8697]
[1729864269351,13.78467682,174.39,174.29,13.78467682]
[1729864269555,13.78467682,174.39,174.31,2.8696]
[1729864270354,2.8688,174.37,174.32,2.8694]
[1729864270947,2.8689,174.36,174.32,2.8694]
[1729864271151,13.78467682,174.39,174.29,13.78467682]
[1729864271347,13.78467682,174.39,174.28,4.94]
[1729864271348,13.78467682,174.42,174.32,13.78467682]
[1729864271548,13.78467682,174.42,174.23,2.5037]
[1729864271549,14.99787682,174.44,174.34,13.78467682]
[1729864271750,14.99787682,174.44,174.36,2.8687]
[1729864271751,19.93787682,174.44,174.36,2.8687]
[1729864271953,1.1839,174.46,174.36,13.78467682]
[1729864271954,14.96857682,174.46,174.36,13.78467682]
[1729864272343,13.78467682,174.44,174.35,1.2193]
[1729864273050,1.1839,174.46,174.36,13.78467682]
[1729864273249,1.1839,174.46,174.35,1.2193]
[1729864273250,18.72467682,174.47,174.38,13.78467682]
[1729864273450,4.94,174.47,174.38,18.82467682]
[1729864273661,2.8674,174.45,174.4,2.8682]
[1729864274052,2.8674,174.45,174.39,5.04]
[1729864274351,5.04,174.5,174.38,5.04]
[1729864274352,13.78467682,174.47,174.38,5.04]
[1729864274953,2.8678,174.43,174.38,5.04]
[1729864275348,2.8678,174.43,174.38,7.9085]
[1729864276443,2.8678,174.43,174.38,5.04]
[1729864277047,5.04,174.5,174.38,5.04]
[1729864277254,13.78467682,174.49,174.39,13.78467682]
[1729864277554,13.78467682,174.49,174.4,2.8682]
[1729864277751,2.8675,174.45,174.4,2.8682]
[1729864278148,13.78467682,174.49,174.41,2.8679]
[1729864278542,5.04,174.5,174.41,2.8679]
[1729864278855,2.8672,174.47,174.42,2.8678]
[1729864279061,18.82467682,174.5,174.39,13.78467682]
[1729864279249,18.82467682,174.5,174.41,13.78467682]
[1729864279250,13.78467682,174.5,174.41,13.78467682]
[1729864279450,13.78467682,174.55,174.45,13.78467682]
[1729864279757,13.78467682,174.53,174.46,5.04]
[1729864280057,13.78467682,174.49,174.42,6.2913]
[1729864280248,13.78467682,174.49,174.47,4.58]
[1729864280649,2.8669,174.48,174.47,4.58]
[1729864284158,1.2316,174.52,174.47,4.58]
[1729864284159,15.01627682,174.52,174.47,4.58]
[1729864284950,2.8669,174.48,174.47,4.58]
[1729864285159,16.65157682,174.48,174.47,4.58]
[1729864288060,2.8667,174.5,174.47,4.58]
[1729864288261,15.01627682,174.52,174.47,4.58]
[1729864289260,1.2316,174.52,174.47,4.58]
[1729864290051,18.82467682,174.53,174.47,4.58]
[1729864290251,2.8665,174.51,174.47,4.58]
[1729864290463,13.78467682,174.53,174.47,4.58]
[1729864290864,2.8665,174.51,174.47,4.58]
[1729864291061,2.379,174.57,174.47,4.58]
[1729864291362,61.96,174.67,174.5,2.8665]
[1729864291363,2.8658,174.55,174.5,2.8665]
[1729864291567,13.78467682,174.58,174.5,18.82467682]
[1729864292265,337.0,174.76,174.57,13.78467682]
[1729864292565,1.217,174.69,174.62,13.78467682]
[1729864292761,1.236,174.71,174.62,18.82467682]
[1729864293652,6.257,174.75,174.64,13.78467682]
[1729864293956,13.78467682,174.7,174.58,3.7432]
[1729864294263,13.78467682,174.7,174.52,27.05969383]
[1729864294264,22.01969383,174.65,174.52,27.05969383]
[1729864294466,22.01969383,174.65,174.53,7.5408]
[1729864294467,27.05969383,174.65,174.53,7.5408]
[1729864294765,22.01969383,174.63,174.53,2.5008]
[1729864294968,22.01969383,174.63,174.5,5.04]
[1729864295263,22.01969383,174.63,174.5,7.4754]
[1729864295855,2.8656,174.56,174.5,7.4754]
[1729864296064,2.4463,174.68,174.47,1.2793]
[1729864296065,5.04,174.58,174.48,5.04]
[1729864296268,5.04,174.62,174.49,22.01969383]
[1729864296566,5.04,174.63,174.52,22.01969383]
[1729864297163,5.04,174.63,174.52,27.05969383]
[1729864297570,2.8646,174.62,174.55,2.8656]
[1729864297871,5.04,174.65,174.53,2.4563]
[1729864298572,5.04,174.65,174.54,22.01969383]
[1729864298870,7.9041,174.65,174.58,2.8651]
[1729864299363,7.9039,174.67,174.6,2.8648]
[1729864299564,5.04,174.67,174.57,27.05969383]
[1729864299962,5.04,174.67,174.61,2.8648]
[1729864300158,5.04,174.67,174.55,1.1761]
[1729864300359,5.04,174.67,174.55,6.2161]
[1729864300567,22.01969383,174.66,174.55,1.1761]
[1729864300873,22.01969383,174.63,174.54,5.04]
[1729864301073,2.8649,174.6,174.53,5.3222]
[1729864301273,5.04,174.62,174.53,2.4563]
[1729864301674,2.8648,174.61,174.54,2.8658]
[1729864302678,2.8648,174.61,174.55,2.8657]
[1729864302969,7.9046,174.62,174.53,2.4563]
[1729864303273,5.12,174.69,174.58,22.01969383]
[1729864303473,5.12,174.69,174.57,5.12]
[1729864303777,5.12,174.69,174.59,2.8651]
[1729864304361,2.8641,174.66,174.59,2.8649]
[1729864304566,5.12,174.69,174.59,2.8649]
[1729864304878,2.8642,174.65,174.59,2.8649]
[1729864305168,5.12,174.69,174.54,1.2808]
[1729864305169,22.01969383,174.68,174.54,1.2808]
[1729864305372,2.8647,174.62,174.54,6.4008]
[1729864305965,2.8647,174.62,174.56,2.8655]
[1729864306571,2.8648,174.61,174.56,2.8655]
[1729864306772,5.12,174.64,174.56,2.8655]
[1729864307576,2.8647,174.62,174.56,2.8655]
[1729864308576,5.12,174.64,174.53,2.4563]
[1729864308774,2.4952,174.63,174.53,2.4563]
[1729864308975,2.4952,174.63,174.53,24.47599383]
[1729864309170,2.4952,174.63,174.53,25.75069383]
[1729864309974,2.8648,174.61,174.56,2.8655]
[1729864310175,2.8648,174.61,174.53,25.75069383]
[1729864310176,2.4952,174.63,174.53,25.75069383]
[1729864310479,2.8649,174.6,174.53,6.597]
[1729864310781,24.51489383,174.63,174.53,3.731]
[1729864310971,5.12,174.63,174.53,25.75069383]
[1729864311171,2.8647,174.62,174.53,25.75069383]
[1729864311970,2.8647,174.62,174.54,5.12]
[1729864312171,2.4212,174.68,174.56,22.01969383]
[1729864312378,5.12,174.67,174.58,22.01969383]
[1729864313280,2.8641,174.66,174.59,2.865]
[1729864313680,6.3553,174.68,174.59,2.865]
[1729864314078,28.37499383,174.68,174.56,22.01969383]
[1729864314280,28.37499383,174.68,174.54,5.12]
[1729864315079,22.01969383,174.65,174.53,3.731]
[1729864315386,2.865,174.6,174.54,2.8659]
[1729864315979,5.12,174.62,174.53,3.731]
[1729864316179,2.8651,174.59,174.53,6.597]
[1729864316383,5.12,174.62,174.53,6.597]
[1729864316586,2.865,174.6,174.53,6.597]
[1729864317085,5.12,174.62,174.53,2.4563]
[1729864317086,2.8655,174.57,174.53,2.4563]
[1729864317287,27.13969383,174.62,174.49,5.12]
[1729864317587,5.12,174.62,174.51,22.01969383]
[1729864317782,2.865,174.6,174.51,22.01969383]
[1729864318186,2.865,174.6,174.54,2.8659]
[1729864318587,5.12,174.62,174.51,22.01969383]
[1729864318788,5.12,174.62,174.54,2.8659]
[1729864318987,5.12,174.62,174.51,22.01969383]
[1729864319192,2.8649,174.61,174.51,22.01969383]
[1729864319382,5.12,174.62,174.55,2.8657]
[1729864320296,2.8649,174.6,174.55,2.8657]
[1729864320491,5.12,174.62,174.55,2.8657]
[1729864320899,2.8649,174.61,174.55,2.8657]
[1729864321292,2.8649,174.61,174.56,4.58]
[1729864321995,2.8649,174.6,174.56,4.58]
[1729864323594,5.12,174.62,174.56,4.58]
[1729864323595,2.8654,174.57,174.56,4.58]
[1729864324098,1.1872,174.64,174.56,4.58]
[1729864324297,23.25499383,174.68,174.56,4.58]
[1729864324502,1.2353,174.68,174.57,22.01969383]
[1729864324707,27.13969383,174.67,174.56,4.58]
[1729864325000,22.01969383,174.65,174.56,4.58]
[1729864325296,27.13969383,174.67,174.56,4.58]
[1729864325297,22.01969383,174.62,174.56,4.58]
[1729864325495,2.8654,174.57,174.56,4.58]
[1729864326701,5.12,174.61,174.56,4.58]
[1729864327307,24.88509383,174.57,174.56,4.58]
[1729864327495,22.01969383,174.57,174.45,30.81539383]
[1729864327695,2.866,174.54,174.48,2.8668]
[1729864327898,2.866,174.54,174.45,30.81539383]
[1729864328098,5.12,174.56,174.45,30.81539383]
[1729864328293,2.8664,174.52,174.46,2.8672]